Workbook

Sheet Summary
A1: Date | B1: Product | C1: Revenue
A2: 2011-06-01 | B2: All Products | C2: =Legs!E2+Eggs!E2+Pigs!E6 -> 1512.5
A3: 2011-06-02 | B3: All Products | C3: =Legs!E3+Eggs!E3+Pigs!E7 -> 1656.25
A4: 2011-06-03 | B4: All Products | C4: =Legs!E4+Eggs!E4+Pigs!E8 -> 1800
A5: 2011-06-06 | B5: All Products | C5: =Legs!E5+Eggs!E5+Pigs!E9 -> 1943.75
A6: 2011-06-07 | B6: All Products | C6: =Legs!E6+Eggs!E6+Pigs!E10 -> 2087.5
A7: 2011-06-08 | B7: All Products | C7: =Legs!E7+Eggs!E7+Pigs!E11 -> 2231.25
A8: 2011-06-09 | B8: All Products | C8: =Legs!E8+Eggs!E8+Pigs!E12 -> 2375
A9: 2011-06-10 | B9: All Products | C9: =Legs!E9+Eggs!E9+Pigs!E13 -> 2518.75
A10: 2011-06-13 | B10: All Products | C10: =Legs!E10+Eggs!E10+Pigs!E14 -> 2662.5
A11: 2011-06-14 | B11: All Products | C11: =Legs!E11+Eggs!E11+Pigs!E15 -> 2806.25
A12: 2011-06-15 | B12: All Products | C12: =Legs!E12+Eggs!E12+Pigs!E16 -> 2950
A13: 2011-06-16 | B13: All Products | C13: =Legs!E13+Eggs!E13+Pigs!E17 -> 3093.75
A14: 2011-06-17 | B14: All Products | C14: =Legs!E14+Eggs!E14+Pigs!E18 -> 3237.5
A15: 2011-06-20 | B15: All Products | C15: =Legs!E15+Eggs!E15+Pigs!E19 -> 3381.25
A16: 2011-06-21 | B16: All Products | C16: =Legs!E16+Eggs!E16+Pigs!E20 -> 3525
A17: 2011-06-22 | B17: All Products | C17: =Legs!E17+Eggs!E17+Pigs!E21 -> 3668.75
A18: 2011-06-23 | B18: All Products | C18: =Legs!E18+Eggs!E18+Pigs!E22 -> 3812.5
A19: 2011-06-24 | B19: All Products | C19: =Legs!E19+Eggs!E19+Pigs!E23 -> 3956.25
A20: 2011-06-27 | B20: All Products | C20: =Legs!E20+Eggs!E20+Pigs!E24 -> 4100
C21: =SUM(C2:C20) -> 53318.75

Sheet Legs
A1: Date | B1: Product | C1: Net | D1: Quantity | E1: Revenue
A2: 2011-06-01 | B2: Legs | C2: 3.25 | D2: 50 | E2: =C2*D2 -> 162.5
A3: 2011-06-02 | B3: Legs | C3: 3.25 | D3: 55 | E3: =C3*D3 -> 178.75
A4: 2011-06-03 | B4: Legs | C4: 3.25 | D4: 60 | E4: 195
A5: 2011-06-06 | B5: Legs | C5: 3.25 | D5: 65 | E5: 211.25
A6: 2011-06-07 | B6: Legs | C6: 3.25 | D6: 70 | E6: 227.5
A7: 2011-06-08 | B7: Legs | C7: 3.25 | D7: 75 | E7: 243.75
A8: 2011-06-09 | B8: Legs | C8: 3.25 | D8: 80 | E8: 260
A9: 2011-06-10 | B9: Legs | C9: 3.25 | D9: 85 | E9: 276.25
A10: 2011-06-13 | B10: Legs | C10: 3.25 | D10: 90 | E10: 292.5
A11: 2011-06-14 | B11: Legs | C11: 3.25 | D11: 95 | E11: 308.75
A12: 2011-06-15 | B12: Legs | C12: 3.25 | D12: 100 | E12: 325
A13: 2011-06-16 | B13: Legs | C13: 3.25 | D13: 105 | E13: 341.25
A14: 2011-06-17 | B14: Legs | C14: 3.25 | D14: 110 | E14: 357.5
A15: 2011-06-20 | B15: Legs | C15: 3.25 | D15: 115 | E15: 373.75
A16: 2011-06-21 | B16: Legs | C16: 3.25 | D16: 120 | E16: 390
A17: 2011-06-22 | B17: Legs | C17: 3.25 | D17: 125 | E17: 406.25
A18: 2011-06-23 | B18: Legs | C18: 3.25 | D18: 130 | E18: 422.5
A19: 2011-06-24 | B19: Legs | C19: 3.25 | D19: 135 | E19: 438.75
A20: 2011-06-27 | B20: Legs | C20: 3.25 | D20: 140 | E20: 455
A21: 2011-06-28 | B21: Legs | C21: 3.25 | D21: 140 | E21: =C21*D21 -> 455
A22: 2011-06-29 | B22: Legs | C22: 3.25 | D22: 140 | E22: =C22*D22 -> 455
E23: =SUM(E2:E20) -> 5866.25

Sheet Eggs
A1: Date | B1: Product | C1: Net | D1: Quantity | E1: Revenue
A2: 2011-06-01 | B2: Eggs | C2: 1.5 | D2: 100 | E2: =C2*D2 -> 150
A3: 2011-06-02 | B3: Eggs | C3: 1.5 | D3: 105 | E3: =C3*D3 -> 157.5
A4: 2011-06-03 | B4: Eggs | C4: 1.5 | D4: 110 | E4: 165
A5: 2011-06-06 | B5: Eggs | C5: 1.5 | D5: 115 | E5: 172.5
A6: 2011-06-07 | B6: Eggs | C6: 1.5 | D6: 120 | E6: 180
A7: 2011-06-08 | B7: Eggs | C7: 1.5 | D7: 125 | E7: 187.5
A8: 2011-06-09 | B8: Eggs | C8: 1.5 | D8: 130 | E8: 195
A9: 2011-06-10 | B9: Eggs | C9: 1.5 | D9: 135 | E9: 202.5
A10: 2011-06-13 | B10: Eggs | C10: 1.5 | D10: 140 | E10: 210
A11: 2011-06-14 | B11: Eggs | C11: 1.5 | D11: 145 | E11: 217.5
A12: 2011-06-15 | B12: Eggs | C12: 1.5 | D12: 150 | E12: 225
A13: 2011-06-16 | B13: Eggs | C13: 1.5 | D13: 155 | E13: 232.5
A14: 2011-06-17 | B14: Eggs | C14: 1.5 | D14: 160 | E14: 240
A15: 2011-06-20 | B15: Eggs | C15: 1.5 | D15: 165 | E15: 247.5
A16: 2011-06-21 | B16: Eggs | C16: 1.5 | D16: 170 | E16: 255
A17: 2011-06-22 | B17: Eggs | C17: 1.5 | D17: 175 | E17: 262.5
A18: 2011-06-23 | B18: Eggs | C18: 1.5 | D18: 180 | E18: 270
A19: 2011-06-24 | B19: Eggs | C19: 1.5 | D19: 185 | E19: 277.5
A20: 2011-06-27 | B20: Eggs | C20: 1.5 | D20: 190 | E20: 285
E21: =SUM(E2:E20) -> 4132.5

Sheet Pigs
A1: Price | B1: 6
A2: Start | B2: 200
A3: Increment | B3: 20
A5: Date | B5: Product | C5: Net | D5: Quantity | E5: Revenue
A6: 2011-06-01 | B6: Pigs | C6: =$B$1 -> 6 | D6: =B2 -> 200 | E6: =C6*D6 -> 1200
A7: 2011-06-02 | B7: Pigs | C7: =$B$1 -> 6 | D7: =D6+$B$3 -> 220 | E7: =C7*D7 -> 1320
A8: 2011-06-03 | B8: Pigs | C8: 6 | D8: =D7+$B$3 -> 240 | E8: 1440
A9: 2011-06-06 | B9: Pigs | C9: 6 | D9: =D8+$B$3 -> 260 | E9: 1560
A10: 2011-06-07 | B10: Pigs | C10: 6 | D10: 280 | E10: 1680
A11: 2011-06-08 | B11: Pigs | C11: 6 | D11: 300 | E11: 1800
A12: 2011-06-09 | B12: Pigs | C12: 6 | D12: 320 | E12: 1920
A13: 2011-06-10 | B13: Pigs | C13: 6 | D13: 340 | E13: 2040
A14: 2011-06-13 | B14: Pigs | C14: 6 | D14: 360 | E14: 2160
A15: 2011-06-14 | B15: Pigs | C15: 6 | D15: 380 | E15: 2280
A16: 2011-06-15 | B16: Pigs | C16: 6 | D16: 400 | E16: 2400
A17: 2011-06-16 | B17: Pigs | C17: 6 | D17: 420 | E17: 2520
A18: 2011-06-17 | B18: Pigs | C18: 6 | D18: 440 | E18: 2640
A19: 2011-06-20 | B19: Pigs | C19: 6 | D19: 460 | E19: 2760
A20: 2011-06-21 | B20: Pigs | C20: 6 | D20: 480 | E20: 2880
A21: 2011-06-22 | B21: Pigs | C21: 6 | D21: 500 | E21: 3000
A22: 2011-06-23 | B22: Pigs | C22: 6 | D22: 520 | E22: 3120
A23: 2011-06-24 | B23: Pigs | C23: 6 | D23: 540 | E23: 3240
A24: 2011-06-27 | B24: Pigs | C24: =$B$1 -> 6 | D24: 560 | E24: 3360
E25: =SUM(E6:E24) -> 43320

Sheet Pigs with Scenarios
A1: Price | B1: 6
A2: Start | B2: 200
A3: Increment | B3: 20
A5: Date | B5: Product | C5: Net | D5: Quantity | E5: Revenue
A6: 2011-06-01 | B6: Pigs | C6: =$B$1 -> 6 | D6: =B2 -> 200 | E6: =C6*D6 -> 1200
A7: 2011-06-02 | B7: Pigs | C7: =$B$1 -> 6 | D7: =D6+$B$3 -> 220 | E7: =C7*D7 -> 1320
A8: 2011-06-03 | B8: Pigs | C8: 6 | D8: =D7+$B$3 -> 240 | E8: 1440
A9: 2011-06-06 | B9: Pigs | C9: 6 | D9: =D8+$B$3 -> 260 | E9: 1560
A10: 2011-06-07 | B10: Pigs | C10: 6 | D10: 280 | E10: 1680
A11: 2011-06-08 | B11: Pigs | C11: 6 | D11: 300 | E11: 1800
A12: 2011-06-09 | B12: Pigs | C12: 6 | D12: 320 | E12: 1920
A13: 2011-06-10 | B13: Pigs | C13: 6 | D13: 340 | E13: 2040
A14: 2011-06-13 | B14: Pigs | C14: 6 | D14: 360 | E14: 2160
A15: 2011-06-14 | B15: Pigs | C15: 6 | D15: 380 | E15: 2280
A16: 2011-06-15 | B16: Pigs | C16: 6 | D16: 400 | E16: 2400
A17: 2011-06-16 | B17: Pigs | C17: 6 | D17: 420 | E17: 2520
A18: 2011-06-17 | B18: Pigs | C18: 6 | D18: 440 | E18: 2640
A19: 2011-06-20 | B19: Pigs | C19: 6 | D19: 460 | E19: 2760
A20: 2011-06-21 | B20: Pigs | C20: 6 | D20: 480 | E20: 2880
A21: 2011-06-22 | B21: Pigs | C21: 6 | D21: 500 | E21: 3000
A22: 2011-06-23 | B22: Pigs | C22: 6 | D22: 520 | E22: 3120
A23: 2011-06-24 | B23: Pigs | C23: 6 | D23: 540 | E23: 3240
A24: 2011-06-27 | B24: Pigs | C24: =$B$1 -> 6 | D24: 560 | E24: 3360
E25: =SUM(E6:E24) -> 43320

Sheet Customers
A1: generated | B1: CustomerID | C1: LastName | D1: FirstName | E1: Address1 | F1: Address2 | G1: Value | H1: State | I1: Zip | J1: Phone
A2: 2011-06-28T08:05:27 | B2: 1 | C2: Accardo | D2: James | E2: 976 S Ballenger | G2: Commerce Township | H2: MI | I2: 48423- | J2: (810) 231-7895
A3: 2011-06-28T08:05:27 | B3: 2 | C3: Adams | D3: James | E3: 9380 Crafton Dr | G3: Adamsville | H3: MI | J3: (517) 555-8018
A4: 2011-06-28T08:05:27 | B4: 3 | C4: Alexander | D4: Lisa | E4: 2478 Marjorie Lane | G4: MyTown | H4: MI | I4: 48507- | J4: (810) 555-1234
A5: 2011-06-28T08:05:27 | B5: 4 | C5: Allen | D5: Beverly | E5: 914 Mckeighan | G5: MyTown | H5: MI | I5: 48507- | J5: (810) 555-2262
A6: 2011-06-28T08:05:27 | B6: 5 | C6: Allen | D6: Timothy | E6: 3015 Grandblanc Rd | G6: MyTown | H6: MI | I6: 48532- | J6: (810) 555-8945
A7: 2011-06-28T08:05:27 | B7: 6 | C7: Allen | D7: Velma | E7: 4101 Sheridan Rd | G7: MyTown | H7: MI | I7: 48532- | J7: (810) 555-1246
A8: 2011-06-28T08:05:27 | B8: 7 | C8: Allen | D8: Michael | E8: 12345 | G8: MyTown | H8: MI | I8: 48507- | J8: (810) 555-8945
A9: 2011-06-28T08:05:27 | B9: 8 | C9: Andersen | D9: Catherine | E9: 3729 Palmer | G9: MyTown | H9: MI | I9: 48504- | J9: (810) 555-4687
A10: 2011-06-28T08:05:27 | B10: 9 | C10: Anger | D10: Dawne | E10: 2818 Seneca | G10: Commerce Township | H10: MI | I10: 48423- | J10: (810) 231-3272
A11: 2011-06-28T08:05:27 | B11: 10 | C11: Archer | D11: Jeffrey | E11: 8093 Saw Grass Trail | G11: Adamsville | H11: MI | I11: 48458- | J11: (517) 555-9393
A12: 2011-06-28T08:05:27 | B12: 11 | C12: Argentine | D12: Elizabeth | E12: 435 Allen Gardens | G12: Adamsville | H12: MI | I12: 48458- | J12: (517) 555-4092
A13: 2011-06-28T08:05:27 | B13: 12 | C13: Assaf | D13: John | G13: MyTown | H13: MI | I13: 48504- | J13: (810) 555-8192
A14: 2011-06-28T08:05:27 | B14: 13 | C14: Attarian | D14: Mary | E14: 2406 Broadway | G14: MyTown | H14: MI | I14: 48507- | J14: (810) 555-5975
A15: 2011-06-28T08:05:27 | B15: 14 | C15: Averill | D15: Patricia | E15: 2163 Mackinaw | G15: MyTown | H15: MI | I15: 48506- | J15: (810) 555-9651
A16: 2011-06-28T08:05:27 | B16: 15 | C16: Bachman | D16: Madison | E16: 2082 Five Lakes Rd | G16: MyTown | H16: MI | I16: 48504- | J16: (810) 555-8363
A17: 2011-06-28T08:05:27 | B17: 16 | C17: Bachman | D17: Brandon | E17: 8387 Neff | G17: Adamsville | H17: MI | I17: 48458- | J17: (517) 555-2593
A18: 2011-06-28T08:05:27 | B18: 17 | C18: Bailey | D18: Gerald | E18: 603 Peirson St | G18: MyTown | H18: MI | I18: 48503- | J18: (810) 555-9457
A19: 2011-06-28T08:05:27 | B19: 18 | C19: Bailey | D19: Bryan | E19: 3314 Dillon Rd | G19: Adamsville | H19: MI | I19: 48458- | J19: (517) 555-2661
A20: 2011-06-28T08:05:27 | B20: 19 | C20: Bair | D20: Danielle | E20: 5371 Worchester Dr | G20: MyTown | H20: MI | I20: 48504- | J20: (810) 555-1190
A21: 2011-06-28T08:05:27 | B21: 20 | C21: Baker | D21: Corey | E21: 4234 Cascade Ct | G21: MyTown | H21: MI | I21: 48504- | J21: (810) 555-7697
A22: 2011-06-28T08:05:27 | B22: 21 | C22: Balcom | D22: Peggy | E22: 1397 Lake Nepessing Rd | G22: MyTown | H22: MI | I22: 48505- | J22: (810) 555-2324
A23: 2011-06-28T08:05:27 | B23: 22 | C23: Balyeat | D23: Ellen | E23: 1016 Willowood | G23: Adamsville | H23: MI | I23: 48458- | J23: (517) 555-1694
A24: 2011-06-28T08:05:27 | B24: 23 | C24: Bancroft | D24: Patsy | E24: 4481 Rainbow Lane | G24: MyTown | H24: MI | I24: 48504- | J24: (810) 555-3296
A25: 2011-06-28T08:05:27 | B25: 24 | C25: Barker | D25: Jamilda | E25: G 2381 Pearl Ann | G25: MyTown | H25: MI | I25: 48505- | J25: (810) 555-2303
A26: 2011-06-28T08:05:27 | B26: 25 | C26: Barnum | D26: Sandra | E26: 5038 N Seymour Rd | G26: Commerce Township | H26: MI | I26: 48423- | J26: (810) 231-3101
A27: 2011-06-28T08:05:27 | B27: 26 | C27: Barrett | D27: Raymond | E27: One Citizens Bank Bldg | G27: MyTown | H27: MI | I27: 48503- | J27: (810) 555-5384
A28: 2011-06-28T08:05:27 | B28: 27 | C28: Barroso | D28: Paula | E28: 5410 Maple Park Dr Apt 6 | G28: Adamsville | H28: MI | I28: 48458- | J28: (517) 555-4401
A29: 2011-06-28T08:05:27 | B29: 28 | C29: Barry | D29: Denise | E29: 2110 Briar Lane | G29: Adamsville | H29: MI | I29: 48458- | J29: (517) 555-4715
A30: 2011-06-28T08:05:27 | B30: 29 | C30: Baryo | D30: Dawn | E30: 1315 G | G30: MyTown | H30: MI | I30: 48506- | J30: (810) 555-1753
A31: 2011-06-28T08:05:27 | B31: 30 | C31: Baryo I | D31: James | E31: 6131 Woodmoor Dr | G31: Adamsville | H31: MI | I31: 48458- | J31: (517) 555-2348
A32: 2011-06-28T08:05:27 | B32: 31 | C32: Baryo II | D32: Dave | E32: 301 Harriet Apt 1 | G32: Adamsville | H32: MI | I32: 48458- | J32: (517) 555-6939
A33: 2011-06-28T08:05:27 | B33: 32 | C33: Bazzani | D33: Travis | E33: 2353 Belle Meade | G33: Adamsville | H33: MI | I33: 48458- | J33: (517) 555-4734
A34: 2011-06-28T08:05:27 | B34: 33 | C34: Bearer | D34: Ricardo | E34: 615 Tickner | G34: MyTown | H34: MI | I34: 48503- | J34: (810) 555-6130
A35: 2011-06-28T08:05:27 | B35: 34 | C35: Beatty | D35: James | E35: 101483 S Saginaw | G35: MyTown | H35: MI | I35: 48504- | J35: (810) 555-5283
A36: 2011-06-28T08:05:27 | B36: 35 | C36: Beaudoin | D36: Helen | E36: 14130 Landingsway | G36: MyTown | H36: MI | I36: 48506- | J36: (810) 555-9555
A37: 2011-06-28T08:05:27 | B37: 36 | C37: Beck | D37: Noreen | E37: 6262 Richfield Rd | G37: MyTown | H37: MI | I37: 48506- | J37: (810) 555-1844
A38: 2011-06-28T08:05:27 | B38: 37 | C38: Becker | D38: Cedrick | E38: 1310 Blanchard | G38: Adamsville | H38: MI | I38: 48458- | J38: (517) 555-1233
A39: 2011-06-28T08:05:27 | B39: 38 | C39: Becker | D39: Phil | E39: O | G39: Adamsville | H39: MI | I39: 48458- | J39: (517) 555-8883
A40: 2011-06-28T08:05:27 | B40: 39 | C40: Becker | D40: Susan | E40: 6066 Bunkerhill | G40: Adamsville | H40: MI | I40: 48458- | J40: (517) 555-8866
A41: 2011-06-28T08:05:27 | B41: 40 | C41: Beebe | D41: Debbie | E41: 1511 N Dexter | G41: MyTown | H41: MI | I41: 48504- | J41: (810) 555-8185
A42: 2011-06-28T08:05:27 | B42: 41 | C42: Bell | D42: Stephen | E42: 6262 Richfield Rd | G42: MyTown | H42: MI | I42: 48505- | J42: (810) 555-1197
A43: 2011-06-28T08:05:27 | B43: 42 | C43: Beltran | D43: Anthony | E43: 424 Aron | G43: Commerce Township | H43: MI | I43: 48423- | J43: (810) 231-7219
A44: 2011-06-28T08:05:27 | B44: 43 | C44: Bence | D44: Kristina | E44: P O Box 359 | G44: Commerce Township | H44: MI | I44: 48423- | J44: (810) 231-3908
A45: 2011-06-28T08:05:27 | B45: 44 | C45: Bennett | D45: Dale | E45: 5305 N Elms Rd | G45: Commerce Township | H45: MI | I45: 48423- | J45: (810) 231-9223
A46: 2011-06-28T08:05:27 | B46: 45 | C46: Benore | D46: Terry | E46: 12370 W Peirson Rd | G46: MyTown | H46: MI | I46: 48506- | J46: (810) 555-8608
A47: 2011-06-28T08:05:27 | B47: 46 | C47: Bergh | D47: Brenda | E47: 1463 James St | G47: Adamsville | H47: MI | I47: 48458- | J47: (517) 555-2046
A48: 2011-06-28T08:05:27 | B48: 47 | C48: Berry | D48: Samantha | E48: 6201 Allison Dr | G48: MyTown | H48: MI | I48: 48506- | J48: (810) 555-4239
A49: 2011-06-28T08:05:27 | B49: 48 | C49: Bielec | D49: Catherine | E49: 1806 Webster Rd 229 | G49: MyTown | H49: MI | I49: 48503- | J49: (810) 555-5103
A50: 2011-06-28T08:05:27 | B50: 49 | C50: Billingsley | D50: Nancy | E50: 1430 Hilltop Drive | G50: MyTown | H50: MI | I50: 48503- | J50: (810) 555-9556
A51: 2011-06-28T08:05:27 | B51: 50 | C51: Bingham | D51: Stephen | G51: MyTown | H51: MI | I51: 48504- | J51: (810) 555-4648
A52: 2011-06-28T08:05:27 | B52: 51 | C52: Binkley | D52: Brian | E52: G 3230 Hogarth | G52: MyTown | H52: MI | I52: 48506- | J52: (810) 555-8750
A53: 2011-06-28T08:05:27 | B53: 52 | C53: Bishop | D53: Rebecca | E53: 3058 Dixie Highway | G53: MyTown | H53: MI | I53: 48506- | J53: (810) 555-5548
A54: 2011-06-28T08:05:27 | B54: 53 | C54: Biskner | D54: Randy | E54: 2990 Anoka | G54: Adamsville | H54: MI | I54: 48458- | J54: (517) 555-6200
A55: 2011-06-28T08:05:27 | B55: 54 | C55: Bissell | D55: Linda | E55: 622 W Bundy Ave | G55: MyTown | H55: MI | I55: 48503- | J55: (810) 555-3520
A56: 2011-06-28T08:05:27 | B56: 55 | C56: Bitman | D56: Chad | E56: 202 Terrace | G56: Adamsville | H56: MI | I56: 48458- | J56: (517) 555-8501
A57: 2011-06-28T08:05:27 | B57: 56 | C57: Blair | D57: John | E57: 5517 M L King Blvd | G57: Adamsville | H57: MI | I57: 48458- | J57: (517) 555-4766
A58: 2011-06-28T08:05:27 | B58: 57 | C58: Blake | D58: Korry | E58: 2024 Bagley | G58: MyTown | H58: MI | I58: 48505- | J58: (810) 555-3294
A59: 2011-06-28T08:05:27 | B59: 58 | C59: Boehm | D59: Peter | E59: 4342 E Wilson Rd | G59: MyTown | H59: MI | I59: 48532- | J59: (810) 555-8093
A60: 2011-06-28T08:05:27 | B60: 59 | C60: Bommorito | D60: Jeremy | E60: 433 Clunny | G60: MyTown | H60: MI | I60: 48505- | J60: (810) 555-1707
A61: 2011-06-28T08:05:27 | B61: 60 | C61: Bonasse | D61: Yolanda | E61: 3198 Ludwig | G61: MyTown | H61: MI | I61: 48505- | J61: (810) 555-5429
A62: 2011-06-28T08:05:27 | B62: 61 | C62: Bonner | D62: Ron | E62: 2278 E Schumacher | G62: MyTown | H62: MI | I62: 48505- | J62: (810) 555-5346
A63: 2011-06-28T08:05:27 | B63: 62 | C63: Borgne | D63: Rebeka | E63: 158 Monroe Dr | G63: MyTown | H63: MI | I63: 48505- | J63: (810) 555-5570
A64: 2011-06-28T08:05:27 | B64: 63 | C64: Bosh | D64: Justin | E64: 6344 Squire Lake Dr | G64: MyTown | H64: MI | I64: 48504- | J64: (810) 555-8036
A65: 2011-06-28T08:05:27 | B65: 64 | C65: Bowen | D65: Steve | E65: 11180 Phyllis | G65: MyTown | H65: MI | I65: 48532- | J65: (810) 555-7346
A66: 2011-06-28T08:05:27 | B66: 65 | C66: Boys | D66: Vicki | E66: G 3073 West Dayton | G66: Adamsville | H66: MI | I66: 48458- | J66: (517) 555-8205
A67: 2011-06-28T08:05:27 | B67: 66 | C67: Bradford | D67: Robert | E67: 5875 Big Lake Canal Rd | G67: Adamsville | H67: MI | I67: 48458- | J67: (517) 555-1343
A68: 2011-06-28T08:05:27 | B68: 67 | C68: Brannam | D68: Vincent | E68: 121 Paterson | G68: Adamsville | H68: MI | I68: 48458- | J68: (517) 555-8418
A69: 2011-06-28T08:05:27 | B69: 68 | C69: Brennan | D69: Delores | E69: 3169 Skander Dr | G69: Adamsville | H69: MI | I69: 48458- | J69: (517) 555-3727
A70: 2011-06-28T08:05:27 | B70: 69 | C70: Brock | D70: Brian | E70: 301 W Morengo | G70: MyTown | H70: MI | I70: 48505- | J70: (810) 555-5320
A71: 2011-06-28T08:05:27 | B71: 70 | C71: Brooks | D71: Vrenna | E71: P O Box 310361 | G71: MyTown | H71: MI | I71: 48503- | J71: (810) 555-7372
A72: 2011-06-28T08:05:27 | B72: 71 | C72: Brooks | D72: Cheryl | E72: 6702 Roseanna | G72: MyTown | H72: MI | I72: 48532- | J72: (810) 555-2808
A73: 2011-06-28T08:05:27 | B73: 72 | C73: Brown | D73: Nancy | E73: 2276 Utley Rd | G73: MyTown | H73: MI | I73: 48503- | J73: (810) 555-7394
A74: 2011-06-28T08:05:27 | B74: 73 | C74: Brown | D74: James | E74: 3701 Robin St | G74: MyTown | H74: MI | I74: 48506- | J74: (810) 555-1130
A75: 2011-06-28T08:05:27 | B75: 74 | C75: Brown | D75: Beverly | E75: 11525 Plaza Dr Apt 204w | G75: Adamsville | H75: MI | I75: 48458- | J75: (517) 555-4630
A76: 2011-06-28T08:05:27 | B76: 75 | C76: Brown | D76: Alexia | E76: 9480 Butternutt St | G76: MyTown | H76: MI | I76: 48507- | J76: (810) 555-2733
A77: 2011-06-28T08:05:27 | B77: 76 | C77: Brown | D77: Pamela | E77: 1034 Barbara St | G77: MyTown | H77: MI | I77: 48507- | J77: (810) 555-7287
A78: 2011-06-28T08:05:27 | B78: 77 | C78: Brown | D78: Linda | E78: 11859 E Lansing Rd | G78: MyTown | H78: MI | I78: 48504- | J78: (810) 555-1260
A79: 2011-06-28T08:05:27 | B79: 78 | C79: Brown | D79: Lincoln | E79: 6111 Harwood | G79: MyTown | H79: MI | I79: 48507- | J79: (810) 555-7643
A80: 2011-06-28T08:05:27 | B80: 79 | C80: Brown | D80: Sandra | E80: 5443 Ole Banner | G80: MyTown | H80: MI | I80: 48504- | J80: (810) 555-4882
A81: 2011-06-28T08:05:27 | B81: 80 | C81: Brown | D81: Tuquila | E81: 9181 Chesterfield Dr | G81: MyTown | H81: MI | J81: (810) 555-1254
A82: 2011-06-28T08:05:27 | B82: 81 | C82: Bruce | D82: Denettra | E82: 6190 Oriole Drive | G82: MyTown | H82: MI | I82: 48504- | J82: (810) 555-6519
A83: 2011-06-28T08:05:27 | B83: 82 | C83: Bruce | D83: Freddy | E83: 3714 Forest Hill Ave | G83: MyTown | H83: MI | I83: 48505- | J83: (810) 555-3485
A84: 2011-06-28T08:05:27 | B84: 83 | C84: Bruff | D84: Judy | E84: 5417 Flemming Rd | G84: MyTown | H84: MI | I84: 48505- | J84: (810) 555-5639
A85: 2011-06-28T08:05:27 | B85: 84 | C85: Bruton | D85: Monica | E85: 12348 W Grand Forks | G85: MyTown | H85: MI | I85: 48504- | J85: (810) 555-5316
A86: 2011-06-28T08:05:27 | B86: 85 | C86: Buchanon | D86: Michael | E86: 529 E First St | G86: MyTown | H86: MI | I86: 48507- | J86: (810) 555-6113
A87: 2011-06-28T08:05:27 | B87: 86 | C87: Buchanon | D87: Lee | E87: 523 Hemlock | G87: MyTown | H87: MI | I87: 48505- | J87: (810) 555-5040
A88: 2011-06-28T08:05:27 | B88: 87 | C88: Buchholz | D88: Cornelius | E88: 3200 W Cook | G88: MyTown | H88: MI | I88: 48505- | J88: (810) 555-6123
A89: 2011-06-28T08:05:27 | B89: 88 | C89: Burnett | D89: Charles | E89: 4451 E Adamsville Rd | G89: Adamsville | H89: MI | I89: 48458- | J89: (517) 555-1479
A90: 2011-06-28T08:05:27 | B90: 89 | C90: Burnett | D90: Sue | E90: 11080 E Farrand Rd | G90: Adamsville | H90: MI | I90: 48458- | J90: (517) 555-7839
A91: 2011-06-28T08:05:27 | B91: 90 | C91: Burns | D91: Russell | E91: 6130 Bellingham Ct | G91: Adamsville | H91: MI | I91: 48458- | J91: (517) 555-5104
A92: 2011-06-28T08:05:27 | B92: 91 | C92: Burns | D92: Victoria | E92: 4323 Webster Rd | G92: MyTown | H92: MI | I92: 48532- | J92: (810) 555-7615
A93: 2011-06-28T08:05:27 | B93: 92 | C93: Burns | D93: Kathleen | E93: 10349 Sheridan Rd | G93: MyTown | H93: MI | I93: 48506- | J93: (810) 555-4826
A94: 2011-06-28T08:05:27 | B94: 93 | C94: Bush | D94: Sandy | E94: 1114 Ida Ave | G94: MyTown | H94: MI | I94: 48503- | J94: (810) 555-5363
A95: 2011-06-28T08:05:27 | B95: 94 | C95: Bush | D95: Wendy | E95: 2171 E Francis Rd | G95: MyTown | H95: MI | I95: 48504- | J95: (810) 555-4034
A96: 2011-06-28T08:05:27 | B96: 95 | C96: Bush | D96: Pamela | E96: 9219 Beecher Rd | G96: Commerce Township | H96: MI | I96: 48423- | J96: (810) 231-5907
A97: 2011-06-28T08:05:27 | B97: 96 | C97: Buss | D97: Robert | E97: 5144 Sunburst Ct | G97: MyTown | H97: MI | I97: 48507- | J97: (810) 555-1324
A98: 2011-06-28T08:05:27 | B98: 97 | C98: Buxton | D98: Herman | E98: 6111 Palmetto | G98: MyTown | H98: MI | I98: 48507- | J98: (810) 555-4319
A99: 2011-06-28T08:05:27 | B99: 98 | C99: Cahill | D99: Christopher | E99: 5261 Lin Hill | G99: Adamsville | H99: MI | I99: 48458- | J99: (517) 555-8512
A100: 2011-06-28T08:05:27 | B100: 99 | C100: Cahill | D100: Jessica | G100: Adamsville | H100: MI | I100: 48458- | J100: (517) 555-3642
A101: 2011-06-28T08:05:27 | B101: 100 | C101: Cargill | D101: Judy | E101: 3366 Veldon | G101: Adamsville | H101: MI | I101: 48458- | J101: (517) 555-6769
A102: 2011-06-28T08:05:27 | B102: 101 | C102: Carlson | D102: Darlene | E102: 2106 Canniff | G102: Adamsville | H102: MI | I102: 48458- | J102: (517) 555-5833
A103: 2011-06-28T08:05:27 | B103: 102 | C103: Carlson | D103: Judy | E103: 9359 Gray Trax | G103: MyTown | H103: MI | I103: 48503- | J103: (810) 555-8260
A104: 2011-06-28T08:05:27 | B104: 103 | C104: Carlson | D104: William | E104: 1451 Hilltop Dr | G104: MyTown | H104: MI | I104: 48532- | J104: (810) 555-7754
A105: 2011-06-28T08:05:27 | B105: 104 | C105: Carmack | D105: Christy | E105: 600 Cherry | G105: Adamsville | H105: MI | I105: 48458- | J105: (517) 555-8483
A106: 2011-06-28T08:05:27 | B106: 105 | C106: Carr | D106: Louis | E106: 4163 Manor Dr | G106: Adamsville | H106: MI | I106: 48458- | J106: (517) 555-6258
A107: 2011-06-28T08:05:27 | B107: 106 | C107: Carroll | D107: Jan | E107: 1504 W Judd | G107: MyTown | H107: MI | I107: 48532- | J107: (810) 555-9063
A108: 2011-06-28T08:05:27 | B108: 107 | C108: Carson | D108: Charles | E108: 1307 Bent Dr | G108: Adamsville | H108: MI | I108: 48458- | J108: (517) 555-9986
A109: 2011-06-28T08:05:27 | B109: 108 | C109: Carwile | D109: Donald | E109: 2441 W Irish Rd | G109: MyTown | H109: MI | I109: 48504- | J109: (810) 555-3428
A110: 2011-06-28T08:05:27 | B110: 109 | C110: Chapman | D110: Ron | E110: 14280 North Rd | G110: Adamsville | H110: MI | I110: 48458- | J110: (517) 555-7701
A111: 2011-06-28T08:05:27 | B111: 110 | C111: Cherwinski | D111: Cynthia | E111: 3901 Hammerberg Rd K1 | G111: MyTown | H111: MI | I111: 48503- | J111: (810) 555-7382
A112: 2011-06-28T08:05:27 | B112: 111 | C112: Choate | D112: Michael | E112: 4028 Hammer Lake Rd | G112: Commerce Township | H112: MI | I112: 48423- | J112: (810) 231-2851
A113: 2011-06-28T08:05:27 | B113: 112 | C113: Christian | D113: Joshua | E113: P O Box 7663 | G113: Commerce Township | H113: MI | I113: 48423- | J113: (810) 231-2157
A114: 2011-06-28T08:05:27 | B114: 113 | C114: Clark | D114: David | E114: 836 Oda St | F114: P O BOX 1002 | G114: Adamsville | H114: VA | I114: 48458- | J114: (517) 555-1202
A115: 2011-06-28T08:05:27 | B115: 114 | C115: Clark | D115: Claudia | E115: 3071 Shabay Rd | G115: Adamsville | H115: MI | I115: 48458- | J115: (517) 555-8099
A116: 2011-06-28T08:05:27 | B116: 115 | C116: Claypool | D116: Julie | E116: 11050 Phyllis Dr | G116: Adamsville | H116: MI | I116: 48458- | J116: (517) 555-3663
A117: 2011-06-28T08:05:27 | B117: 116 | C117: Clemons | D117: Annie | E117: 14314 Tuscola Rd | G117: MyTown | H117: MI | I117: 48504- | J117: (810) 555-1685
A118: 2011-06-28T08:05:27 | B118: 117 | C118: Cleveland | D118: Wilfred | E118: 68 Concord | G118: MyTown | H118: MI | I118: 48507- | J118: (810) 555-9861
A119: 2011-06-28T08:05:27 | B119: 118 | C119: Cobra | D119: Marjorie | E119: 9316 Lyle Meadow | G119: Adamsville | H119: MI | I119: 48458- | J119: (517) 555-6695
A120: 2011-06-28T08:05:27 | B120: 119 | C120: Cole | D120: Harold | E120: 5241 E Coldwater Rd Lot 146 | G120: MyTown | H120: MI | I120: 48504- | J120: (810) 555-1612
A121: 2011-06-28T08:05:27 | B121: 120 | C121: Cole | D121: George | E121: 11442 | G121: Adamsville | H121: MI | I121: 48458- | J121: (517) 555-7804
A122: 2011-06-28T08:05:27 | B122: 121 | C122: Cole | D122: Diane | E122: 10252 W Stanley Rd | G122: Commerce Township | H122: MI | I122: 48423- | J122: (810) 231-4875
A123: 2011-06-28T08:05:27 | B123: 122 | C123: Coleman | D123: Roger | E123: 5112 Georgetown | G123: Commerce Township | H123: MI | I123: 48423- | J123: (810) 231-1545
A124: 2011-06-28T08:05:27 | B124: 123 | C124: Coleman | D124: Shane | E124: 710 Ingleside | G124: MyTown | H124: MI | I124: 48504- | J124: (810) 555-6590
A125: 2011-06-28T08:05:27 | B125: 124 | C125: Colley | D125: Brenda | E125: 1657 E Hamilton | G125: Adamsville | H125: MI | I125: 48458- | J125: (517) 555-7826
A126: 2011-06-28T08:05:27 | B126: 125 | C126: Collins | D126: Nicolas | E126: 1402 Bradley Ave | G126: MyTown | H126: MI | I126: 48507- | J126: (810) 555-4852
A127: 2011-06-28T08:05:27 | B127: 126 | C127: Cook | D127: Gail | E127: 342 North Dr | G127: MyTown | H127: MI | I127: 48506- | J127: (810) 555-4975
A128: 2011-06-28T08:05:27 | B128: 127 | C128: Cook | D128: Cynthia | E128: 2439 W N Union Rd | G128: MyTown | H128: MI | I128: 48505- | J128: (810) 555-2704
A129: 2011-06-28T08:05:27 | B129: 128 | C129: Coolman | D129: Edward | E129: 5247 Harold Dr | G129: MyTown | H129: MI | I129: 48506- | J129: (810) 555-7355
A130: 2011-06-28T08:05:27 | B130: 129 | C130: Coon | D130: Nathan | E130: 4511 Pendragon | G130: MyTown | H130: MI | I130: 48504- | J130: (810) 555-8672
A131: 2011-06-28T08:05:27 | B131: 130 | C131: Cooper | D131: Elizabeth | E131: 3353 Jennings Rd | G131: MyTown | H131: MI | I131: 48504- | J131: (810) 555-1508
A132: 2011-06-28T08:05:27 | B132: 131 | C132: Cooper | D132: Sandra | E132: 5410 Maple Park Drive | G132: MyTown | H132: MI | I132: 48507- | J132: (810) 555-3460
A133: 2011-06-28T08:05:27 | B133: 132 | C133: Cooper | D133: Kerri | E133: 10 E Gillespie | G133: MyTown | H133: MI | I133: 48506- | J133: (810) 555-7681
A134: 2011-06-28T08:05:27 | B134: 133 | C134: Copeland | D134: Iantha | E134: 5013 N Naomi Kong | G134: Adamsville | H134: MI | I134: 48458- | J134: (517) 555-5715
A135: 2011-06-28T08:05:27 | B135: 134 | C135: Cord | D135: Doug | E135: 2465 Eaastwood Dr | G135: MyTown | H135: MI | I135: 48503- | J135: (810) 555-9427
A136: 2011-06-28T08:05:27 | B136: 135 | C136: Corder | D136: Rickey | E136: 1244 Bray Rd | G136: Adamsville | H136: MI | I136: 48458- | J136: (517) 555-5726
A137: 2011-06-28T08:05:27 | B137: 136 | C137: Corning | D137: Shane | E137: 12444 Bray Rd | G137: MyTown | H137: MI | I137: 48504- | J137: (810) 555-1678
A138: 2011-06-28T08:05:27 | B138: 137 | C138: Corona | D138: Laurie | E138: 1244 Bray Rd | G138: Adamsville | H138: MI | I138: 48458- | J138: (517) 555-8247
A139: 2011-06-28T08:05:27 | B139: 138 | C139: Cosby | D139: Brenda | E139: 4382 Dublin | G139: Commerce Township | H139: MI | I139: 48423- | J139: (810) 231-3348
A140: 2011-06-28T08:05:27 | B140: 139 | C140: Covert | D140: Beatrice | G140: MyTown | H140: MI | I140: 48507- | J140: (810) 555-9916
A141: 2011-06-28T08:05:27 | B141: 140 | C141: Covert | D141: Joann | E141: 2257 Baxter Rd | G141: MyTown | H141: MI | I141: 48507- | J141: (810) 555-6789
A142: 2011-06-28T08:05:27 | B142: 141 | C142: Covey | D142: James | E142: 603 1/2 S Oak St | G142: Adamsville | H142: MI | I142: 48458- | J142: (517) 555-7953
A143: 2011-06-28T08:05:27 | B143: 142 | C143: Crabtree | D143: Jeremy | E143: 1404 Potter Blvd | G143: MyTown | H143: MI | I143: 48504- | J143: (810) 555-2065
A144: 2011-06-28T08:05:27 | B144: 143 | C144: Cross | D144: Joyce | E144: 11486 Foley Rd | G144: MyTown | H144: MI | I144: 48532- | J144: (810) 555-3375
A145: 2011-06-28T08:05:27 | B145: 144 | C145: Cross | D145: Barbara | E145: 5053 Indian Hill Tr | G145: Commerce Township | H145: MI | I145: 48423- | J145: (810) 231-9715
A146: 2011-06-28T08:05:27 | B146: 145 | C146: Crossroe | D146: Arthur | G146: MyTown | H146: MI | I146: 48503- | J146: (810) 555-6345
A147: 2011-06-28T08:05:27 | B147: 146 | C147: Cyberski | D147: Esther | E147: 5172 Raymond Ave | G147: Adamsville | H147: MI | I147: 48458- | J147: (517) 555-2169
A148: 2011-06-28T08:05:27 | B148: 147 | C148: D Aigle | D148: Ernie | E148: 1205 Ann Arbor St | G148: Adamsville | H148: MI | I148: 48458- | J148: (517) 555-3044
A149: 2011-06-28T08:05:27 | B149: 148 | C149: D Aigle | D149: Nicole | E149: 5144 Sunburst Ct | G149: Adamsville | H149: MI | I149: 48458- | J149: (517) 555-5224
A150: 2011-06-28T08:05:27 | B150: 149 | C150: Dailey | D150: Matthew | E150: 385 Tiplady | G150: MyTown | H150: MI | I150: 48506- | J150: (810) 555-4518
A151: 2011-06-28T08:05:27 | B151: 150 | C151: Dailey | D151: Thomas | E151: 7124 Houghton Dr | G151: MyTown | H151: MI | I151: 48505- | J151: (810) 555-2510
A152: 2011-06-28T08:05:27 | B152: 151 | C152: Daniels | D152: Garrett | E152: 4216 S State Rd | G152: Adamsville | H152: MI | I152: 48458- | J152: (517) 555-5968
A153: 2011-06-28T08:05:27 | B153: 152 | C153: Daron | D153: Gertie | E153: 2072 Eberly Rd | G153: Commerce Township | H153: MI | I153: 48423- | J153: (810) 231-8078
A154: 2011-06-28T08:05:27 | B154: 153 | C154: Daunt | D154: William | E154: 4013 Sterling St | G154: MyTown | H154: MI | I154: 48505- | J154: (810) 555-6764
A155: 2011-06-28T08:05:27 | B155: 154 | C155: Davis | D155: Sandra | E155: 722 Alexander St | G155: Commerce Township | H155: MI | I155: 48423- | J155: (810) 231-7375
A156: 2011-06-28T08:05:27 | B156: 155 | C156: Dawes | D156: Sharon | E156: 2043 Hickory | G156: MyTown | H156: MI | I156: 48532- | J156: (810) 555-2579
A157: 2011-06-28T08:05:27 | B157: 156 | C157: Dawes | D157: Kathleen | E157: 3150 W Mott | G157: Commerce Township | H157: MI | I157: 48423- | J157: (810) 231-2529
A158: 2011-06-28T08:05:27 | B158: 157 | C158: Day | D158: Jeremy | E158: 2507 Covert Rd | G158: Adamsville | H158: MI | I158: 48458- | J158: (517) 555-3101
A159: 2011-06-28T08:05:27 | B159: 158 | C159: Day | D159: John | E159: 11010 Harvard | G159: MyTown | H159: MI | I159: 48504- | J159: (810) 555-3359
A160: 2011-06-28T08:05:27 | B160: 159 | C160: Deagostino | D160: Jennifer | E160: 2507 Covert Rd | G160: MyTown | H160: MI | J160: (810) 555-9225
A161: 2011-06-28T08:05:27 | B161: 160 | C161: Deal | D161: Raynetta | E161: 3353 Gernada | G161: MyTown | H161: MI | I161: 48532- | J161: (810) 555-2699
A162: 2011-06-28T08:05:27 | B162: 161 | C162: Delbridge | D162: Teresa | E162: 3206 Mac Ave | G162: Commerce Township | H162: MI | I162: 48423- | J162: (810) 231-6509
A163: 2011-06-28T08:05:27 | B163: 162 | C163: Delbridge | D163: Lisa | E163: 2507 Covert Rd | G163: Commerce Township | H163: MI | I163: 48423- | J163: (810) 231-5112
A164: 2011-06-28T08:05:27 | B164: 163 | C164: Denby | D164: Donald | E164: 3281 Windland | G164: MyTown | H164: MI | I164: 48420- | J164: (810) 555-4264
A165: 2011-06-28T08:05:27 | B165: 164 | C165: Dennis | D165: Michell | E165: 3376 Cherry Blossom Ct | G165: MyTown | H165: MI | I165: 48532- | J165: (810) 555-5629
A166: 2011-06-28T08:05:27 | B166: 165 | C166: Dennis | D166: Michael | E166: G 3376 Concord | G166: MyTown | H166: MI | I166: 48504- | J166: (810) 555-2110
A167: 2011-06-28T08:05:27 | B167: 166 | C167: Dennis | D167: Bruce | E167: 4323 Webster Rd | G167: MyTown | H167: MI | I167: 48506- | J167: (810) 555-2577
A168: 2011-06-28T08:05:27 | B168: 167 | C168: Derbyshire | D168: Shiela | E168: 1270 Dort Highway | G168: Adamsville | H168: MI | I168: 48458- | J168: (517) 555-3749
A169: 2011-06-28T08:05:27 | B169: 168 | C169: Devoe | D169: David | E169: 1284 Pleasant Street | G169: Adamsville | H169: MI | I169: 48458- | J169: (517) 555-4013
A170: 2011-06-28T08:05:27 | B170: 169 | C170: Dickinson | D170: Patricia | E170: 1282 Stonehenge Rd | G170: MyTown | H170: MI | I170: 48504- | J170: (810) 555-5711
A171: 2011-06-28T08:05:27 | B171: 170 | C171: Dodge | D171: Cherie | E171: 1545 W Fry Rd | G171: MyTown | H171: MI | I171: 48506- | J171: (810) 555-4425
A172: 2011-06-28T08:05:27 | B172: 171 | C172: Dowell | D172: Harry | E172: 3079 N Oak Rd | G172: MyTown | H172: MI | I172: 48506- | J172: (810) 555-1588
A173: 2011-06-28T08:05:27 | B173: 172 | C173: Dubois | D173: Charity | E173: 1312 W Home | G173: MyTown | H173: MI | I173: 48504- | J173: (810) 555-4189
A174: 2011-06-28T08:05:27 | B174: 173 | C174: Duckworth | D174: Michael | E174: 3510 Clearwater | G174: Commerce Township | H174: MI | I174: 48423- | J174: (810) 231-3368
A175: 2011-06-28T08:05:27 | B175: 174 | C175: Duckworth | D175: Linda | E175: 2537 Haviland | G175: MyTown | H175: MI | I175: 48504- | J175: (810) 555-6992
A176: 2011-06-28T08:05:27 | B176: 175 | C176: Duhen | D176: Cheryl | E176: 610 W Bundy Ave | G176: Adamsville | H176: MI | I176: 48458- | J176: (517) 555-8855
A177: 2011-06-28T08:05:27 | B177: 176 | C177: Dullinger | D177: Judith | E177: 1128 South Vassar Road | G177: Adamsville | H177: MI | I177: 48458- | J177: (517) 555-5628
A178: 2011-06-28T08:05:27 | B178: 177 | C178: Dumas | D178: Denise | E178: 8957 Barnes Rd | G178: MyTown | H178: MI | I178: 48532- | J178: (810) 555-5249
A179: 2011-06-28T08:05:27 | B179: 178 | C179: Durant | D179: Traci | E179: 1355 Burnes Rd | G179: MyTown | H179: MI | I179: 48504- | J179: (810) 555-4855
A180: 2011-06-28T08:05:27 | B180: 179 | C180: Durgan | D180: Eric | E180: 9441 Jean St | G180: Adamsville | H180: MI | I180: 48458- | J180: (517) 555-6703
A181: 2011-06-28T08:05:27 | B181: 180 | C181: Durling | D181: Patty | E181: 926 Beard | G181: Commerce Township | H181: MI | I181: 48423- | J181: (810) 231-7857
A182: 2011-06-28T08:05:27 | B182: 181 | C182: Durrett | D182: Vernon | E182: 2447 Tobias | G182: Adamsville | H182: MI | I182: 48458- | J182: (517) 555-9673
A183: 2011-06-28T08:05:27 | B183: 182 | C183: Durst | D183: Houston | E183: 4713 Fifth Street | G183: MyTown | H183: MI | I183: 48504- | J183: (810) 555-2903
A184: 2011-06-28T08:05:27 | B184: 183 | C184: Dusute | D184: Fulla | E184: 1525 S Franklin St | G184: Adamsville | H184: MI | I184: 48458- | J184: (517) 555-7343
A185: 2011-06-28T08:05:27 | B185: 184 | C185: Duty | D185: Kim | E185: 2755 Berkley St | G185: Commerce Township | H185: MI | I185: 48423- | J185: (810) 231-3116
A186: 2011-06-28T08:05:27 | B186: 185 | C186: Dzuris | D186: David | E186: G 6106 Westknoll Dr 353 | G186: Adamsville | H186: MI | I186: 48458- | J186: (517) 555-6966
A187: 2011-06-28T08:05:27 | B187: 186 | C187: Ecksemplar | D187: Mattie | E187: 3422 Augusta | G187: MyTown | H187: MI | I187: 48505- | J187: (810) 555-2250
A188: 2011-06-28T08:05:27 | B188: 187 | C188: Edelen | D188: Future | E188: 7434 N Irish Road | G188: Adamsville | H188: MI | I188: 48458- | J188: (517) 555-6470
A189: 2011-06-28T08:05:27 | B189: 188 | C189: Edwards | D189: Melissa | E189: 4609 George Town Rd | G189: MyTown | H189: MI | I189: 48505- | J189: (810) 555-7079
A190: 2011-06-28T08:05:27 | B190: 189 | C190: Elbert | D190: Anna | E190: 11238 N Elms Road | G190: MyTown | H190: MI | I190: 48532- | J190: (810) 555-2413
A191: 2011-06-28T08:05:27 | B191: 190 | C191: Elder | D191: Greg | E191: 214 Sherman | G191: Adamsville | H191: MI | I191: 48458- | J191: (517) 555-3382
A192: 2011-06-28T08:05:27 | B192: 191 | C192: Ellis | D192: Theresa | E192: P O Box 279 | G192: Adamsville | H192: MI | I192: 48458- | J192: (517) 555-9426
A193: 2011-06-28T08:05:27 | B193: 192 | C193: Ellis | D193: Donna | E193: 1119 Barrie Ave | G193: MyTown | H193: MI | I193: 48503- | J193: (810) 555-4646
A194: 2011-06-28T08:05:27 | B194: 193 | C194: Ellison | D194: Janet | E194: 2657 W Barnes Rd | G194: MyTown | H194: MI | I194: 48504- | J194: (810) 555-3742
A195: 2011-06-28T08:05:27 | B195: 194 | C195: Ellsworth | D195: Nila | E195: 3714 Forest Hill Ave | G195: MyTown | H195: MI | I195: 48503- | J195: (810) 555-9652
A196: 2011-06-28T08:05:27 | B196: 195 | C196: Emmendorfer | D196: Larry | E196: 11654 Plaza Dr | G196: MyTown | H196: MI | I196: 48532- | J196: (810) 555-1993
A197: 2011-06-28T08:05:27 | B197: 196 | C197: Enos | D197: Ryan | E197: 1420 Perry Rd Bldg 2 | G197: MyTown | H197: MI | I197: 48504- | J197: (810) 555-2469
A198: 2011-06-28T08:05:27 | B198: 197 | C198: Erhardt | D198: Tonya | E198: 1225 W Fifth Ave | G198: MyTown | H198: MI | I198: 48503- | J198: (810) 555-7960
A199: 2011-06-28T08:05:27 | B199: 198 | C199: Erickson | D199: Ruthie | E199: 1018 Edith Ave | G199: MyTown | H199: MI | I199: 48507- | J199: (810) 555-4091
A200: 2011-06-28T08:05:27 | B200: 199 | C200: Etzler | D200: Nancy | E200: 6323 E Wilson Rd | G200: Commerce Township | H200: MI | I200: 48423- | J200: (810) 231-3442
... 571 more rows
